Cogmind - Beta 13 @@@ ROGUE MODE // 2024.04.16 @ 19:37:00 Player: Exceptionally Mediocre Result: Destroyed by QK-UAQ(R) with Subdweller Shrapnel Launcher Performance ------------- Evolutions (0) 0 Regions Visited (2) 400 Robots Destroyed (17) 85 Value Destroyed (347) 347 Prototype IDs (0) 0 Alien Tech Used (0) 0 Bonus (0) 0 TOTAL SCORE: 832 Bonus ------- None Cogmind --------- Core Integrity 0/250 Matter 130/300 Energy 93/100 System Corruption 0% Temperature Cool (0) Movement Rolling (80) Location -10/Subcaves Parts ------- > --- POWER (1) -------- (None) > --- PROPULSION (2) --- Wheel > --- UTILITY (2) ------ Small Storage Unit Improved Terrain Scanner > --- WEAPON (2) ------- (None) > --- INVENTORY (8) ---- Wheel Targeting Computer Core Shielding Light Cannon Grenade Launcher Subdweller Shrapnel Launcher Peak State ------------ > --- POWER ------------ Light Nuclear Core > --- PROPULSION ------- Wheel Wheel > --- UTILITY ---------- Small Storage Unit Improved Terrain Scanner > --- WEAPON ----------- Barrage Gun Subdweller Shrapnel Launcher > --- INVENTORY -------- Wheel Wheel Targeting Computer Core Shielding Battle Rifle Light Cannon Grenade Launcher [Rating: 14] Favorites ----------- Power Light Ion Engine Engine Light Ion Engine Power Core Light Nuclear Core Propulsion Compact Wheel Wheel Compact Wheel Utility Small Storage Unit Device Improved Terrain Scanner Storage Small Storage Unit Weapon Small Laser Energy Gun Small Laser Ballistic Gun Barrage Gun Ballistic Cannon Light Cannon Launcher Grenade Launcher Special Weapon Mining Laser Build | -11 -10 -10 ------- Run | Yrd Mat Sub Slots Evolved . | . . . Power . | . . . Propulsion . | . . . Utility . | . . . Weapon . | . . . Parts Attached 21 | 7 7 7 Power 4 | 1 2 1 Engine 3 | 1 2 . Core 1 | . . 1 Reactor . | . . . Propulsion 6 | 2 1 3 Treads . | . . . Leg . | . . . Wheel 6 | 2 1 3 Hover . | . . . Flight . | . . . Utility 2 | 2 . . Device 1 | 1 . . Storage 1 | 1 . . Processor . | . . . Hackware . | . . . Protection . | . . . Artifact . | . . . Weapon 9 | 2 4 3 Energy Gun 2 | 2 . . Energy Cannon . | . . . Ballistic Gun 2 | . . 2 Ballistic Cannon 1 | . 1 . Launcher 3 | . 2 1 Special Weapon 1 | . 1 . Impact Weapon . | . . . Slashing Weapon . | . . . Piercing Weapon . | . . . Special Melee Weapon . | . . . Unidentified Prototypes . | . . . Parts Lost 10 | . 4 6 Power 4 | . 2 2 Propulsion 3 | . 1 2 Utility . | . . . Weapon 3 | . 1 2 Highest Loss Streak 6 | . 3 6 To Critical Strikes . | . . . Average Slot Usage (%) 97 | . 97 98 Engine 12 | . 14 11 Wheel 27 | . 26 28 Device 14 | . 14 14 Storage 14 | . 14 14 Energy Gun 8 | . 13 . Ballistic Gun 2 | . . 7 Ballistic Cannon 4 | . 2 8 Launcher 11 | . 10 13 Naked Turns . | . . . Heaviest Build 22 | 14 15 22 Greatest Support 32 | 32 32 26 Greatest Overweight (x) 1 | . . 1 Average Overweight (x) . | . . . Largest Inventory Capacity 8 | 8 8 8 Average Capacity 7 | 7 8 8 Most Carried 8 | 8 8 8 Average Carried 6 | 3 7 7 Final Capacity 8 | 8 8 8 Final Carried 8 | 8 8 6 Class Distribution -------------------- 75% | Mutant 24% | Scavenger-Mutant Dominant Class ---------------- Mutant | -10/Materials Scavenger-Mutant | -10/Subcaves Resources | -11 -10 -10 ----------- Run | Yrd Mat Sub Matter Collected 415 | 270 91 54 Remotely . | . . . Salvage Created 338 | 184 128 26 Parts 28 | 15 9 4 Haulers Intercepted . | . . . Recyclers Shooed 2 | 1 1 . Parts Field Recycled . | . . . Retrieved Matter . | . . . Parts Self-Destructed 10 | . . 10 Prevented . | . . . Kills | -11 -10 -10 ------- Run | Yrd Mat Sub Combat Hostiles Destroyed 8 | . 4 4 Guns 1 | . 1 . AOE 7 | . 3 4 Classes Destroyed 6 | 2 1 3 Tunneler 6 | 5 1 . Recycler 1 | 1 . . Turret 2 | . . 2 Swarmer 3 | . . 3 Grunt 4 | . 4 . Subdweller 1 | . . 1 Best Kill Streak 6 | 6 2 6 Combat Bots Only 4 | . 2 4 Max Kills in Single Turn 2 | 1 1 2 Gunslinging . | . . . Exploded 2 | . 1 2 Melee . | . . . Uniques/NPCs Destroyed . | . . . Combat | -11 -10 -10 -------- Run | Yrd Mat Sub Hostile Shots Fired 75 | . 37 38 Missed 25 | . 12 13 Damage Taken 1004 | . 462 542 Core 261 | . 121 140 Absorbed by Shields . | . . . Core Remaining (%) 100 | 100 . . Volleys Fired 44 | 13 19 12 Largest 2 | 2 2 2 Hottest 140 | 80 140 53 Shots Fired 62 | 26 21 15 Gun 46 | 26 11 9 Cannon 1 | . 1 . Launcher 14 | . 8 6 Special 1 | . 1 . Kinetic 15 | . 1 14 Thermal 25 | 13 12 . Explosive 9 | . 8 1 Electromagnetic 13 | 13 . . Robot Hit Streak 7 | 5 4 7 Robot Miss Streak 2 | 2 2 2 Penetration Max . | . . . Secondary Targets . | . . . Shots Hit Robots 31 | 14 10 7 Core Hits 29 | 7 12 10 Critical Kills . | . . . Critical Parts Destroyed . | . . . Critical Strikes . | . . . Melee Attacks . | . . . Impact . | . . . Slashing . | . . . Piercing . | . . . Sneak Attacks . | . . . Combat Hostiles . | . . . Follow-up Attacks . | . . . Damage Inflicted 1341 | 168 514 659 Guns 365 | 168 79 118 Cannons . | . . . Explosions 976 | . 435 541 Melee . | . . . Ramming . | . . . Kinetic 659 | . . 659 Thermal 147 | 68 79 . Explosive 435 | . 435 . Electromagnetic 100 | 100 . . Impact . | . . . Slashing . | . . . Piercing . | . . . Highest Corruption . | . . . Average Corruption . | . . . Corruption Purged . | . . . Corruption Blocked . | . . . Overload Shots . | . . . Overflow Damage 34 | . 21 13 Projectiles . | . . . Explosions 34 | . 21 13 Melee . | . . . Knockbacks . | . . . Impact . | . . . Kinetic . | . . . Secondary . | . . . Self-Inflicted Damage 170 | . 170 . Shots 5 | . 5 . Rammed . | . . . Targets Rammed . | . . . Kicked . | . . . Crushed . | . . . Highest Temperature 97 | 36 97 . Average Temperature 23 | 9 42 . Received Heat Transfer 231 | . 165 66 Siege Activations . | . . . Robots Corrupted . | . . . Combat Hostiles . | . . . Parts Fried . | . . . Impact Corruptions . | . . . Robots Melted . | . . . Combat Hostiles . | . . . Parts Melted . | . . . Heat Transferred 325 | 150 175 . Parts Sabotaged . | . . . Parts Stolen . | . . . Parts Stripped . | . . . Power Chain Reactions . | . . . Alert | -11 -10 -10 ------- Run | Yrd Mat Sub Peak Influence 187 | 30 187 . Initial 19 | . 19 . Average 69 | 14 99 . Maximum Alert Level . | . . . Low Security (%) 100 | 100 100 . Level 1 . | . . . Level 2 . | . . . Level 3 . | . . . Level 4 . | . . . Level 5 . | . . . High Security . | . . . Max Security . | . . . Squads Dispatched 1 | . 1 . Investigation . | . . . Extermination . | . . . Reinforcement 1 | . 1 . Assault . | . . . Garrison . | . . . Intercept . | . . . Searches Triggered . | . . . Construction Impeded . | . . . Haulers Reinforced . | . . . Active Scanning Responses . | . . . Cargo Convoy Interrupts . | . . . Stealth | -11 -10 -10 --------- Run | Yrd Mat Sub Distress Signals 2 | . 2 . Communications Jammed . | . . . Distress Signals . | . . . Times Spotted 29 | . 7 22 Peak Tracking Total 5 | . 4 5 Tactical Retreats 2 | . 1 1 Traps | -11 -10 -10 ------- Run | Yrd Mat Sub Traps Triggered 1 | . . 1 Indirectly . | . . . Trap Hack Attempts . | . . . Triggered . | . . . Disarmed . | . . . Reprogrammed . | . . . Reused . | . . . Traps Extracted . | . . . Installed . | . . . Triggered . | . . . Machines | -11 -10 -10 ---------- Run | Yrd Mat Sub Machines Disabled 5 | . 2 3 Max in Single Turn 3 | . 2 3 Machines Repaired . | . . . Machines Dismantled . | . . . Machines Sabotaged . | . . . Overloaded Fab Kills . | . . . Hacking | -11 -10 -10 --------- Run | Yrd Mat Sub Machines Accessed . | . . . Terminals . | . . . Fabricators . | . . . Repair Stations . | . . . Recycling Units . | . . . Scanalyzers . | . . . Garrison Access . | . . . Total Hacks . | . . . Successful . | . . . Failed . | . . . Catastrophic . | . . . Database Lockouts . | . . . Manual . | . . . Terminals . | . . . Fabricators . | . . . Repair Stations . | . . . Recycling Units . | . . . Scanalyzers . | . . . Garrison Access . | . . . Terminal Hacks . | . . . Fabricator Hacks . | . . . Repair Station Hacks . | . . . Recycling Unit Hacks . | . . . Scanalyzer . | . . . Garrison Access Hacks . | . . . Unauthorized Hacks . | . . . Terminals . | . . . Fabricators . | . . . Repair Stations . | . . . Recycling Units . | . . . Scanalyzers . | . . . Garrison Access . | . . . Data Cores Recovered . | . . . Used . | . . . Hacking Detections . | . . . Full Trace Events . | . . . Feedback Events . | . . . Feedback Blocked . | . . . Robot Schematics Acquired . | . . . Robots Built . | . . . Authchips . | . . . Time . | . . . Total Robot Build Rating . | . . . Part Schematics Acquired . | . . . Parts Built . | . . . Authchips . | . . . Time . | . . . Total Part Build Rating . | . . . Parts Repaired . | . . . Time . | . . . Parts Recycled . | . . . Recycled Matter . | . . . Retrieved Matter . | . . . Retrieved Components . | . . . Parts Scanalyzed . | . . . Part Schematics Acquired . | . . . Parts Damaged . | . . . Bothacking | -11 -10 -10 ------------ Run | Yrd Mat Sub Used RIF Installer . | . . . Robots Hacked . | . . . Non-combat . | . . . Combat . | . . . Robot Hacks Applied . | . . . Relay Couplers Released . | . . . Fabnet Peak Effective % . | . . . Robots Rewired . | . . . Allies Hacked . | . . . Hacks Repelled . | . . . Allies | -11 -10 -10 -------- Run | Yrd Mat Sub Total Allies . | . . . Largest Group . | . . . Highest-Rated Group . | . . . Highest-Rated Ally . | . . . Total Orders . | . . . Ally Attacks . | . . . Total Damage . | . . . Kills . | . . . Allies Corrupted . | . . . Allies Melted . | . . . Intel | -11 -10 -10 ------- Run | Yrd Mat Sub Robot Analysis Total . | . . . Derelict Logs Recovered . | . . . Drone Launches . | . . . Drone Recoveries . | . . . Exploration | -11 -10 -10 ------------- Run | Yrd Mat Sub Turns Passed 527 | 136 243 148 Spaces Moved 393 | 74 186 133 Core 3 | 3 . . Treads . | . . . Legs . | . . . Wheels 390 | 71 186 133 Hover . | . . . Flight . | . . . Fastest Speed 50 | 50 90 80 Average Speed 91 | 97 96 80 Slowest Speed 100 | 100 100 95 Overloaded Moves . | . . . Propulsion Burnouts . | . . . Robots Hopped . | . . . Cave-ins Triggered . | . . . Exploration Rate (%) 14 | 4 23 15 Regions Visited 2 Branch Regions 1 Pre-discovered Areas . | . . . Known Exits Taken . | . . . Unknown Exits Taken 2 | 1 1 . Scrap Searched 1 | . . 1 Spaces Dug 24 | . 17 7 Terrain Destroyed 105 | . 35 70 Melee . | . . . Projectile 1 | . 1 . AOE 104 | . 34 70 Terrain Rammed . | . . . Walls Destroyed . | . . . Machines Disabled . | . . . Actions | -11 -10 -10 --------- Run | Yrd Mat Sub Total 495 | 109 228 158 Wait 9 | 4 5 . Move 391 | 73 185 133 Hop . | . . . Pick Up 22 | 11 8 3 Fast Attach 5 | 5 . . Attach 8 | 2 4 2 Detach . | . . . Swap 8 | . 3 5 Drop 8 | 1 4 3 Fire 44 | 13 19 12 Melee . | . . . Ram . | . . . Kick . | . . . Crush . | . . . Escape Stasis . | . . . Rewire . | . . . Trap . | . . . Miscellaneous . | . . . Route ------- -11/Scrapyard -10/Materials -10/Subcaves (discovered 1 exit: [*Mat]) History --------- Turn | Location | Event 21 | -11/Scrapyard | Discovered new exit (range 16) 137 | -11/Scrapyard | Entered Materials 310 | -10/Materials | Lost 3 parts (1p1n1w) 324 | -10/Materials | Build established: Mutant 372 | -10/Materials | Discovered new exit (range 7) 380 | -10/Materials | Entered Subcaves 427 | -10/Subcaves | Shifting Twisted Machinery released Battle Rifle 427 | -10/Subcaves | Shifting Twisted Machinery released Sub. Shrapnel Launcher 493 | -10/Subcaves | Discovered new exit (range 14) 498 | -10/Subcaves | Core integrity fell below 50% 515 | -10/Subcaves | Ambushed by Subdweller buried in earth 521 | -10/Subcaves | Core integrity fell below 20% 528 | -10/Subcaves | Destroyed by QK-UAQ(R) with Subdweller Shrapnel Launcher Last Messages --------------- 00504_ Flight Unit fries itself beyond repair. 00505_ S-10 Pest destroyed. 00505_ 4F-ZSK(R) destroyed. 00507_ Machine disabled. 00509_ Destroyed Autobeam. 00509_ Autobeam Turret destroyed. 00510_ QK-UAQ(R): "ARGHSUB!" 00514_ QK-UAQ(R) affixes Scrap Shield Fragment to Scrap Shield. 00516_ 3I-VSP(R): "ARGHSUB!" 00518_ Lgt. Assault Rifle fries itself beyond repair. 00518_ QK-UAQ(R) affixes Scrap Shield Fragment to Scrap Shield. 00518_ Lgt. Nuclear Core destroyed. 00521_ Wheel destroyed. 00523_ Barrage Gun destroyed. 00527_ QK-UAQ(R) affixes Scrap Shield Fragment to Scrap Shield. 00528_ Battle Rifle destroyed. Map ----- +----------------------------------------------------+ | ????????????????????????????????## # ## | | ????????????????????????????????# #### ## | | ????????????????????????????????# ##?## ## | | ????????????????????????????????# ##?## #?# | | ????????????????????????????????# #?## ### | | ????????????????????????????????#= #?# ## | | ????????????????????????????????# ### ### | | ????????????????????????????????## ## #??## | | ?????????????????????????????????## ####????## | | ??????????????????????????????????####????????### | | ????????????????????????????#????????#??????????## | | ????????????????????????????#???#????????????????? | | ?????????????????????????????#???????????????????? | | ???????????????????????######???????#????????????? | | ?????????????????#???##" """#?#??????????????????? | | ?????????????????????# " "<"#????????????????????? | | ?????????????##?????## #?????????#??????????? | | ?????????????;;;#####; ;;" #????????????????????? | | ???????????? ; ; ; #????????????????????? | | ???????????? ; #????????????????????? | | ???????????? ##???????????????????? | | ??????????? [ ;##????#????????????#? | | ??????????? R ; #??????#???????????? | | ?????????? ##??????????????#??? | | ???????????% ; ##?????????????????? | | ??????????????????# @ #?????????????????? | | ??????????????????## #????????????????#? | | ???????????????????## ##??????????????? #? | | ???????????????????#; #??##?######???#? ?? | | ???????????????????## #??# ## # ####" #?? | | ????????????????????### R;##??## ## ##? | | ??????????????????#???### ##### " "## | | ????????????????????????#### # ## # | | ????????????????????????#???### ## # ###### ## | | ????????????????#?????#???????##### ##???## # | | ?????????????#?#??????????????????## ### # ## | | ????????????????????????????????????# ## | | ????????????????????????????????????# ### | | ???????????????????????????#????????######??# | | ?????????????????????????????? ??????#??????# | | ???????????????????????????????????????????## | | ????????????????????????????? ?????????????# | | ?????????????????????????? ????????????# | | ????????????????????????????????????# | | ????????????????????????????????????# ## | | ????????????????????????????????????# #? | | ????????????????????????????????????####### #? | | ??????????????????????????????? ??????????## #? | | ???????????????????????????????????????????# "? | | ??????????????????????????????????????????? "? | +----------------------------------------------------+ Best States ------------- Heat Dissipation 25 Energy Generation 14 Energy Capacity 250 Matter Stores 300 Matter Capacity 300 Sight Range 16 Terrain Scan Range 16 Terrain Scan Density 10 Evasion (%) 44 Item Schematics ----------------- None Robot Schematics ------------------ None Fabricated ------------ Nothing Alien Tech Used ----------------- None Achievements -------------- None Challenges ------------ None Game ------ Seed MiningCentriumPendant Manual? 0 Play Time 00:09:14 Cumulative 67.8 hours Start 2024.04.16 @ 19:30:06 End 2024.04.16 @ 19:37:00 Sessions 1 Manual Loads 0 Difficulty Rogue Special Mode None Game No. 82 Rogue 82 Adventurer 0 Explorer 0 Win Type - Total 0 Types 0/0/0/0/0/0/0/0/0 Lore% 19 Gallery% 42 Achievement% 30 Wizard Run 0 Options --------- Layout 1 ASCII 0 Keyboard 1 Movement Vi Keybinds 0 Fullscreen 1 Font 24/Smallcaps Map View 50x35 Zoom Use 0% Tactical HUD 1 Map Filters NONE Filters NONE Steam 1 RUN: 1dbf3a41-36c7-49aa-a0d2-7d1dafd8d13e